{"text_format":"3","workbook":"xlsx","n_sheets":1,"sheets":["Lab Supplies Bid Form"],"read":"whole","date_system":"1900"}

{"sheet":"Lab Supplies Bid Form","index":0,"n_rows":32,"n_cols":10,"rows_kept":32,"merged":[[0,0,0,9],[1,2,1,9],[2,2,2,3],[2,4,2,5],[2,6,2,9],[3,2,3,3],[3,4,3,5],[3,6,3,9],[5,1,6,1],[5,2,5,9],[6,2,6,9],[8,0,8,6],[10,0,11,0],[10,1,11,1],[10,2,11,2],[10,3,11,3],[10,4,10,5],[10,6,11,6],[14,9,16,15],[31,0,31,5]]}
["LABORATORY SUPPLIES PRICING SHEET"]
[null,null,"Representative Contact Information"]
[null,"CONTRACTOR","Name",null,"Telephone",null,"Email"]
[]
[]
["Item Number","CATALOG","Percentage discount applicable uniformly to all catalog items: "]
[1,null,{"v":0,"d":"0%"}]
[]
["Bidders shall offer goods at Bidder’s catalog/inventory pricing less a fixed percent discount that will apply uniformly to the entire catalog/inventory of goods offered by the Bidder. Bidders shall submit pricing of goods listed in the Bid Form by applying the fixed discount percentage rate to the catalog/inventory price. The abovementioned percent must be applied to items not listed below."]
[]
["Item Number","ITEM DESCRIPTION","Unit of Measure","Catalog Price List","Discount ",null,"Price (after discount)"]
[{"$nulls":4},"%","$"]
[2,"Exam Glove Performance Series Nitrile, Small, Nonsterile Nitrile Standard Cuff Length Textured Fingertips Blue Chemo Tested, 200 per pk, 10 pks per case. 5 mil and 6 mil thickness","CS of 2,000",0,{"$f":"SUM(C7)","v":{"v":0,"d":"0%"}},{"$f":"SUM(D13*E13)","v":0},{"$f":"SUM(D13-F13)","v":0},null,"INSTRUCTIONS:"]
[3,"Disposable Serological Pipets, TD, Bulk Pack, Non-Sterile, Unplugged;  Glass pipets calibrated \"to deliver\" (TD) with blow-out and long, slender, tapered tips With negative graduations and fire polished tips. Reference: ASTM E-714 10 mL volume","EA",0,{"$f":"SUM(C7)","v":{"v":0,"d":"0%"}},{"$f":"SUM(D14*E14)","v":0},{"$f":"SUM(D14-F14)","v":0}]
[4,"Instant Hand Sanitizing Wipes; 70% ethyl alcohol Packaging: 12 per case","CS of 12",0,{"$f":"SUM(C7)","v":{"v":0,"d":"0%"}},0,0,null,null,"1. Fill in the contact information. ( light orange, row 4); 2. Enter Percent Discount off catalog. (dark orang cells row 8); 3. Note that the item discount cells (Green Cells) will auto populate with the discount you entered; 4. Enter the catalog price (Column D, rows 13-34, yellow cells). 5. Note that columns F, G and column IJ (merged) will auto populate. Also note cell  IJ row 35 (bright yellow) will show the total price.  6 Enter that total price on the Bid Form."]
[5,"Glass Beakers: Thick, slightly flared, beaded top, uniform sidewall and bottom thickness design. Durable matte finish marking area for use with an ordinary pencil. Ref: ASTM Method D2070; Design meets ASTM Specification E960, Type I requirements; Manufactured from 33 expansion, low extractable borosilicate glass conforming to USP Type I and ASTM E438. Type I, Class A requirements. Volume - 50, 100, 250, 500, 1000 mL ","CS of 24",0,{"$f":"SUM(C7)","v":{"v":0,"d":"0%"}},0,0]
[6,"300mL Plastic BOD Bottle.  Packaging: 100 per case","CS of 100",0,{"$f":"SUM(C7)","v":{"v":0,"d":"0%"}},0,0]
[7,"43cm (L19 cm D 1.9 Pipette Brushes - Soft White Nylon","EA",0,{"$f":"SUM(C7)","v":{"v":0,"d":"0%"}},0,0]
[8,"5ft, 15mm Diameter, 4-Electrode Conductivity Cells. For Use With: Star A112, Star A122, Star A212, Star A215, Star A222, Star A322, Star A325, Star A329, and Conductivity Meters","EA",0,{"$f":"SUM(C7)","v":{"v":0,"d":"0%"}},0,0]
[9,"A221 pH Portable Meter. Perform up to a five-point pH calibration, log up to 1000 data point sets with time/date stamp.",null,0,{"$f":"SUM(C7)","v":{"v":0,"d":"0%"}},0,0]
[10,"Orion Star A211 pH Portable Meter ","EA",0,{"$f":"SUM(C7)","v":{"v":0,"d":"0%"}},0,0]
[11,"Small, medium and Large Pour Boat Polystyrene Weighing Dishes with Pour Spout,  Design polystyrene (plastic) weigh dish facilitates pouring and dispensing. ","CS of 500",0,{"$f":"SUM(C7)","v":{"v":0,"d":"0%"}},0,0]
[12,"Volumetric Flask, Class A, with Snap Cap - 10, 50, 100, 500, 1000mL ","EA",0,{"$f":"SUM(C7)","v":{"v":0,"d":"0%"}},0,0]
[13,"Settleometer Kit: Plastic components are chemically resistant to normal sludge samples (pH 3-10); Dimensions: jar: 5.2 diameter x 7.5\" height Tube: 0.67 diameter x 4.7\" height; Includes: 2-L jar with easy to read graduations. Cover Polypropylene paddle. Ten 15mL conical polycarbonate centrifuge tubes with molded-in graduations and 10 polypropylene, friction-fit closures, Instruction booklet and data sheet","EA",0,{"$f":"SUM(C7)","v":{"v":0,"d":"0%"}},0,0]
[14,"Flask Brush - 12\" length, for 250mL flasks, 3\" bristle length, 12 per pk.  31cm Volumetric Flask Brushes White Bristle, Angled handle mounted on a flexible plastic handle, designed for cleaning Erlenmeyer, Filtering, Kjeldahl, Nephelo, Pear-Shaped, Round Bottom, Flat Bottom, Reaction, and Volumetric flasks.","EA",0,{"$f":"SUM(C7)","v":{"v":0,"d":"0%"}},0,0]
[15,"Shatter Proof Dome, Large Capacity - Vacuum Pycnometer, Plastic, 6kg","EA",0,{"$f":"SUM(C7)","v":{"v":0,"d":"0%"}},0,0]
[16,"Pint bottle of pH storage solution","EA",0,{"$f":"SUM(C7)","v":{"v":0,"d":"0%"}},0,0]
[17,"pH buffer 7, Color Coded yellow, 1 L ","EA",0,{"$f":"SUM(C7)","v":{"v":0,"d":"0%"}},0,0]
[18,"Buffer Solution pH 10.0 @ 25°C, Color Coded Blue, traceable to NIST and Shelf Life: 12 months 1 L  ","EA",0,{"$f":"SUM(C7)","v":{"v":0,"d":"0%"}},0,0]
[19,"500ml Measuring Cylinder, hexagonal Base. ","EA",0,{"$f":"SUM(C7)","v":{"v":0,"d":"0%"}},0,0]
[20,"Colorimeter: With over 90 preprogrammed methods for common test parameters; Automatic selection of 6 LED wavelengths and countdown timer, waterproof meter records 1000 data points. Battery life of about 26 hours continuous use or 3500 tests. Large graphic display with step-by-step user instructions. Automatic countdown to measurement","EA",0,{"$f":"SUM(C7)","v":{"v":0,"d":"0%"}},0,0]
["Total",{"$nulls":5},{"$f":"SUM(G13:G31)","v":0}]